Cogmind - Beta 16 --- EXPLORER MODE // 2025.11.12 @ 16:53:58 Player: K.K.Y. Result: Destroyed by B-48 Gladiator with Mace Performance ------------- Evolutions (0) 0 Regions Visited (3) 600 Robots Destroyed (28) 140 Value Destroyed (643) 643 Prototype IDs (0) 0 Alien Tech Used (0) 0 Bonus (0) 0 TOTAL SCORE: 1383 Bonus ------- None Cogmind --------- Core Integrity 0/250 Matter 288/300 Energy 285/290 System Corruption 0% Temperature Hot (224) Movement Walking (185) Ox1 Location -7/Recycling Parts ------- > --- POWER (1) -------- Improved Deuterium Engine > --- PROPULSION (2) --- VSS Leg Improved Carbon-fiber Leg > --- UTILITY (3) ------ Large Storage Unit Weight Redist. System Salvage Targeting Computer > --- WEAPON (2) ------- Autobeam Autogun > --- INVENTORY (15) --- Subdweller Monowheel Subdweller Monowheel Subdweller Monowheel Small Storage Unit Transport Network Coupler Authchip [R/Combat] Subdweller Laser Assault Rifle Autogun Battle Rifle Minigun Barrage Gun Heavy Missile Launcher Mining Laser Multitool Peak State ------------ > --- POWER ------------ Improved Deuterium Engine > --- PROPULSION ------- VSS Leg Improved Carbon-fiber Leg > --- UTILITY ---------- Large Storage Unit Weight Redist. System Salvage Targeting Computer > --- WEAPON ----------- Subdweller Beam Cannon Heavy Missile Launcher > --- INVENTORY -------- Subdweller Monowheel Subdweller Monowheel Subdweller Monowheel Small Storage Unit Transport Network Coupler Subdweller Laser Autobeam Assault Rifle Autogun Autogun Battle Rifle Minigun Barrage Gun Mining Laser Multitool [Rating: 24] Favorites ----------- Power Light Ion Engine Engine Light Ion Engine Propulsion Improved Aluminum Leg Leg Improved Aluminum Leg Hover Unit Hover Unit Flight Unit Flight Unit Utility Large Storage Unit Device Weight Redist. System Storage Large Storage Unit Processor Salvage Targeting Computer Weapon Autogun Energy Gun Autobeam Energy Cannon Subdweller Beam Cannon Ballistic Gun Autogun Launcher Grenade Launcher Special Weapon Mining Laser Build | -11 -10 -10 -7 ------- Run | Yrd Mat Sub Rec Slots Evolved 1 | . 1 . . Power . | . . . . Propulsion . | . . . . Utility 1 | . 1 . . Weapon . | . . . . Parts Attached 32 | 7 17 3 5 Power 4 | 1 1 1 1 Engine 4 | 1 1 1 1 Core . | . . . . Reactor . | . . . . Propulsion 10 | 2 6 . 2 Treads . | . . . . Leg 6 | 2 2 . 2 Wheel . | . . . . Hover 2 | . 2 . . Flight 2 | . 2 . . Utility 7 | 2 5 . . Device 2 | 1 1 . . Storage 3 | 1 2 . . Processor 2 | . 2 . . Hackware . | . . . . Protection . | . . . . Artifact . | . . . . Weapon 11 | 2 5 2 2 Energy Gun 2 | . 1 . 1 Energy Cannon 2 | . 1 1 . Ballistic Gun 4 | 2 2 . . Ballistic Cannon . | . . . . Launcher 2 | . . 1 1 Special Weapon 1 | . 1 . . Impact Weapon . | . . . . Slashing Weapon . | . . . . Piercing Weapon . | . . . . Special Melee Weapon . | . . . . Unidentified Prototypes . | . . . . Parts Lost 5 | . . 5 . Power 1 | . . 1 . Propulsion 2 | . . 2 . Utility . | . . . . Weapon 2 | . . 2 . Highest Loss Streak 5 | . . 5 . To Critical Strikes . | . . . . Average Backups 8 | 2 4 10 14 Power . | . . . . Propulsion 1 | 1 . . 3 Utility 1 | . . 2 2 Weapon 4 | 1 2 6 8 Tool/Special . | . . . . Unused Backups 11 | . 1 . 10 Power . | . . . . Propulsion 4 | . 1 . 3 Utility 2 | . . . 2 Weapon 4 | . . . 4 Tool/Special 1 | . . . 1 Average Slot Usage (%) 84 | . 86 76 87 Engine 11 | . 10 11 12 Leg 16 | . 18 11 16 Flight 1 | . 4 . . Device 9 | . 6 12 12 Storage 12 | . 12 12 12 Processor 11 | . 11 12 12 Energy Gun 2 | . . . 7 Energy Cannon 3 | . . 7 4 Ballistic Gun 11 | . 17 5 7 Peak Build Rating 24 | 7 14 15 24 Average Rating 11 | 2 8 11 19 On Entrance 8 | . 7 14 11 Avg Prop Armor Cover (%) . | . . . . Naked Turns . | . . . . Heaviest Build 45 | 17 37 33 45 Greatest Support 36 | 20 32 32 36 Greatest Overweight (x) 4 | 3 2 3 4 Average Overweight (x) . | 2 . 1 1 Largest Inventory Capacity 15 | 10 15 15 15 Average Capacity 13 | 9 12 15 15 Most Carried 15 | 5 8 14 15 Average Carried 8 | 2 4 10 14 Final Capacity 15 | 10 15 15 15 Final Carried 15 | . 6 14 15 Class Distribution -------------------- 100% | Hacker-Mutant Dominant Class ---------------- Hacker-Mutant | -10/Materials Hacker-Mutant | -10/Subcaves Hacker-Mutant | -7/Recycling Resources | -11 -10 -10 -7 ----------- Run | Yrd Mat Sub Rec Matter Collected 974 | 225 272 398 79 Remotely . | . . . . Salvage Created 774 | 10 241 330 193 Parts 52 | 1 23 23 5 Haulers Intercepted 1 | . 1 . . Recyclers Shooed . | . . . . Parts Field Recycled . | . . . . Retrieved Matter . | . . . . Parts Self-Destructed . | . . . . Prevented . | . . . . Parts Restored . | . . . . Kills | -11 -10 -10 -7 ------- Run | Yrd Mat Sub Rec Combat Hostiles Destroyed 21 | . 8 10 3 Guns 14 | . 8 4 2 Cannons 5 | . . 4 1 AOE 1 | . . 1 . Classes Destroyed 7 | 1 3 2 1 Worker 1 | 1 . . . Hauler 1 | . 1 . . Turret 2 | . . 2 . Watcher 3 | . 3 . . Swarmer 12 | . 8 4 . Sentry 3 | . . . 3 Subdweller 6 | . . 6 . Best Kill Streak 6 | 1 3 6 1 Combat Bots Only 4 | . 3 4 1 Max Kills in Single Turn 2 | 1 1 2 1 Gunslinging 1 | . . 1 . Exploded 1 | . . 1 . Melee . | . . . . Uniques/NPCs Destroyed . | . . . . Combat | -11 -10 -10 -7 -------- Run | Yrd Mat Sub Rec Hostile Shots Fired 187 | . 16 124 47 Missed 71 | . 7 46 18 Hits 116 | . 9 78 29 Melee 2 | . . . 2 Projectile 114 | . 9 78 27 Damage Taken 983 | . 57 762 164 Core 257 | . 26 198 33 Absorbed by Shields . | . . . . Ignored by Resistances 563 | . 39 415 109 Core Remaining (%) 100 | 100 . . . Volleys Fired 90 | 4 26 49 11 Largest 2 | 2 2 2 1 Hottest 140 | 40 60 140 80 Shots Fired 147 | 8 45 72 22 Gun 108 | 8 44 36 20 Cannon 25 | . 1 22 2 Launcher 9 | . . 9 . Special 5 | . . 5 . Kinetic 94 | 8 41 36 9 Thermal 41 | . 1 27 13 Explosive 9 | . . 9 . Electromagnetic 3 | . 3 . . Robot Hit Streak 17 | 7 11 17 11 Robot Miss Streak 2 | . 2 2 1 Penetration Max . | . . . . Secondary Targets 3 | . 1 2 . Max Gunslinging Chain 1 | . 1 1 . Autonomous 11 | . . . 11 Shots Hit Robots 99 | 7 29 41 22 Core Hits 47 | 2 13 16 16 Critical Kills 2 | . 1 1 . Critical Parts Destroyed 1 | . 1 . . Critical Strikes 3 | . 2 1 . Meltdown 1 | . . 1 . Destroy 2 | . 2 . . Melee Attacks . | . . . . Impact . | . . . . Slashing . | . . . . Piercing . | . . . . Sneak Attacks . | . . . . Combat Hostiles . | . . . . Follow-up Attacks . | . . . . Damage Inflicted 1691 | 74 398 847 372 Guns 991 | 74 328 271 318 Cannons 412 | . 18 341 53 Explosions 280 | . 45 235 . Melee . | . . . . Ramming 8 | . 7 . 1 Kinetic 769 | 74 284 271 140 Thermal 635 | . 63 341 231 Explosive 235 | . . 235 . Electromagnetic 44 | . 44 . . Impact . | . . . . Slashing . | . . . . Piercing . | . . . . Highest Corruption . | . . . . Average Corruption . | . . . . Corruption Purged . | . . . . Corruption Blocked . | . . . . Overload Shots . | . . . . Overflow Damage . | . . . . Projectiles . | . . . . Explosions . | . . . . Melee . | . . . . Knockbacks . | . . . . Impact . | . . . . Kinetic . | . . . . Secondary . | . . . . Self-Inflicted Damage 23 | . . 23 . Shots 2 | . . 2 . Rammed . | . . . . Targets Rammed 4 | . 3 . 1 Kicked 4 | . 3 . 1 Crushed . | . . . . Highest Temperature 284 | . 20 6 284 Average Temperature 71 | . 8 2 102 Received Heat Transfer 363 | . . 291 72 Siege Activations . | . . . . Martial Activations . | . . . . Shielding Activations . | . . . . Robots Disrupted . | . . . . Combat Hostiles . | . . . . Robots Corrupted . | . . . . Combat Hostiles . | . . . . Parts Fried . | . . . . Impact Corruptions . | . . . . Robots Melted 1 | . . 1 . Combat Hostiles 1 | . . 1 . Parts Melted 5 | . . 3 2 Heat Transferred 1263 | . 37 592 634 Parts Sabotaged . | . . . . Parts Stolen . | . . . . Parts Stripped . | . . . . Power Chain Reactions 1 | . 1 . . Alert | -11 -10 -10 -7 ------- Run | Yrd Mat Sub Rec Maximum Alert Level . | . . . . Low Security (%) 100 | 100 100 . 100 Level 1 . | . . . . Level 2 . | . . . . Level 3 . | . . . . Level 4 . | . . . . Level 5 . | . . . . High Security . | . . . . Max Security . | . . . . Peak Influence 64 | 5 64 . 20 Initial 2 | . 2 . . Average 5 | . 8 . . Influence Increases 480 | 5 250 165 60 Destroy 0b10 Robot/C 340 | . 160 120 60 Destroy 0b10 Robot/NC 25 | 5 20 . . Destroy Leader 48 | . 48 . . Disable Machine 4 | . 4 . . Destroy Structure 3 | . 3 . . Lose Combat Pursuer 60 | . 15 45 . Influence Decreases 480 | . 255 165 60 Entered New Map 3 | . 3 . . Time Decay 477 | . 252 165 60 Squads Dispatched . | . . . . Investigation . | . . . . Extermination . | . . . . Reinforcement . | . . . . Assault . | . . . . Garrison . | . . . . Intercept . | . . . . Searches Triggered . | . . . . Construction Impeded . | . . . . Haulers Reinforced . | . . . . Active Scanning Responses . | . . . . Cargo Convoy Interrupts . | . . . . Stealth | -11 -10 -10 -7 --------- Run | Yrd Mat Sub Rec Distress Signals . | . . . . Communications Jammed . | . . . . Distress Signals . | . . . . Times Spotted 36 | . 17 13 6 Peak Tracking Total 6 | . 3 6 3 Tactical Retreats 2 | . 1 1 . Traps | -11 -10 -10 -7 ------- Run | Yrd Mat Sub Rec Traps Triggered 4 | . 2 2 . Indirectly . | . . . . Trap Hack Attempts . | . . . . Triggered . | . . . . Disarmed . | . . . . Reprogrammed . | . . . . Reused . | . . . . Traps Extracted . | . . . . Installed . | . . . . Triggered . | . . . . Machines | -11 -10 -10 -7 ---------- Run | Yrd Mat Sub Rec Machines Disabled 2 | . 1 1 . Max in Single Turn 1 | . 1 1 . Machines Repaired . | . . . . Machines Dismantled . | . . . . Machines Sabotaged . | . . . . Overloaded Fab Kills . | . . . . Hacking | -11 -10 -10 -7 --------- Run | Yrd Mat Sub Rec Machines Accessed 1 | . . 1 . Terminals . | . . . . Fabricators . | . . . . Repair Stations . | . . . . Recycling Units . | . . . . Scanalyzers . | . . . . Garrison Access . | . . . . Total Hacks 4 | . . 4 . Successful 4 | . . 4 . Failed . | . . . . Catastrophic . | . . . . Database Lockouts . | . . . . Manual 2 | . . 2 . Terminals . | . . . . Fabricators . | . . . . Repair Stations . | . . . . Recycling Units . | . . . . Scanalyzers . | . . . . Garrison Access . | . . . . Terminal Hacks 4 | . . 4 . Record 4 | . . 4 . Fabricator Hacks . | . . . . Repair Station Hacks . | . . . . Recycling Unit Hacks . | . . . . Scanalyzer . | . . . . Garrison Access Hacks . | . . . . Unauthorized Hacks . | . . . . Terminals . | . . . . Fabricators . | . . . . Repair Stations . | . . . . Recycling Units . | . . . . Scanalyzers . | . . . . Garrison Access . | . . . . Data Cores Recovered . | . . . . Used . | . . . . Hacking Detections . | . . . . Full Trace Events . | . . . . Feedback Events . | . . . . Feedback Blocked . | . . . . Robot Schematics Acquired . | . . . . Robots Built . | . . . . Authchips . | . . . . Time . | . . . . Total Robot Build Rating . | . . . . Part Schematics Acquired . | . . . . Parts Built . | . . . . Authchips . | . . . . Time . | . . . . Total Part Build Rating . | . . . . Part Studies Acquired . | . . . . Parts Repaired . | . . . . Time . | . . . . Parts Recycled . | . . . . Recycled Matter . | . . . . Retrieved Matter . | . . . . Retrieved Components . | . . . . Parts Scanalyzed . | . . . . Part Schematics Acquired . | . . . . Parts Damaged . | . . . . Bothacking | -11 -10 -10 -7 ------------ Run | Yrd Mat Sub Rec Used RIF Installer . | . . . . Robots Hacked . | . . . . Non-combat . | . . . . Combat . | . . . . Robot Hacks Applied . | . . . . Relay Couplers Released . | . . . . Fabnet Peak Effective % . | . . . . Robots Rewired . | . . . . Allies Hacked . | . . . . Hacks Repelled . | . . . . Allies | -11 -10 -10 -7 -------- Run | Yrd Mat Sub Rec Total Allies . | . . . . Largest Group . | . . . . Highest-Rated Group . | . . . . Highest-Rated Ally . | . . . . Total Orders . | . . . . Ally Attacks . | . . . . Total Damage . | . . . . Kills . | . . . . Allies Corrupted . | . . . . Allies Melted . | . . . . Intel | -11 -10 -10 -7 ------- Run | Yrd Mat Sub Rec Active Infowar (turns) 1042 | 110 932 . . Sensors 547 | 110 437 . . T.N.C. 495 | . 495 . . Robot Analysis Total . | . . . . Derelict Logs Recovered . | . . . . Drone Launches . | . . . . Drone Recoveries . | . . . . Exploration | -11 -10 -10 -7 ------------- Run | Yrd Mat Sub Rec Turns Passed 2706 | 119 1242 671 674 Spaces Moved 1941 | 55 1240 314 332 Core 304 | 49 . 156 99 Treads . | . . . . Legs 1046 | 6 649 158 233 Wheels . | . . . . Hover 136 | . 136 . . Flight 455 | . 455 . . Fastest Speed 37 | 50 37 120 185 Average Speed 121 | 172 89 163 192 Slowest Speed 270 | 200 260 200 270 Overloaded Moves . | . . . . Propulsion Burnouts . | . . . . Robots Hopped 2 | . 2 . . Potential Cave-ins 2 | . . 2 . Cave-ins Triggered . | . . . . Exploration Rate (%) 46 | 6 98 17 65 Regions Visited 3 Branch Regions 2 Pre-discovered Areas . | . . . . Known Exits Taken 3 | 1 1 1 . Unknown Exits Taken . | . . . . Scrap Searched 3 | . . 3 . Spaces Dug 15 | . . 15 . Terrain Destroyed 47 | . 2 45 . Melee . | . . . . Projectile 3 | . . 3 . AOE 44 | . 2 42 . Terrain Rammed . | . . . . Walls Destroyed . | . . . . Machines Disabled . | . . . . Actions | -11 -10 -10 -7 --------- Run | Yrd Mat Sub Rec Total 2159 | 72 1337 393 357 Wait 18 | . 1 15 2 Move 1934 | 54 1235 313 332 Hop 2 | . 2 . . Pick Up 39 | 7 20 10 2 Fast Attach 3 | . . . 3 Attach 35 | 7 23 3 2 Detach 16 | . 14 1 1 Swap 6 | . 3 2 1 Drop 12 | . 10 . 2 Fire 90 | 4 26 49 11 Melee . | . . . . Ram . | . . . . Kick 4 | . 3 . 1 Crush . | . . . . Escape Stasis . | . . . . Rewire . | . . . . Trap . | . . . . Miscellaneous . | . . . . Route ------- -11/Scrapyard -10/Materials (discovered 6 exits: *Mat x3 / *Min x2 / *Sub) -10/Subcaves -7/Recycling (discovered 1 exit: *Fac) History --------- Turn | Location | Event 13 | -11/Scrapyard | Identified exit to Materials 13 | -11/Scrapyard | Discovered exit to Materials (range 15) 120 | -11/Scrapyard | Entered Materials 120 | -10/Materials | Evolved 1 slot: Utility x1 213 | -10/Materials | Identified exit to Materials 213 | -10/Materials | Discovered exit to Materials (range 5) 301 | -10/Materials | Discovered exit to Materials (range 16) 313 | -10/Materials | Build established: Hacker-Mutant 361 | -10/Materials | Identified exit to Mines 361 | -10/Materials | Discovered exit to Mines (range 14) 718 | -10/Materials | Identified exit to Subcaves 718 | -10/Materials | Discovered exit to Subcaves (range 5) 828 | -10/Materials | Discovered exit to Materials (range 5) 844 | -10/Materials | Discovered exit to Mines (range 7) 1362 | -10/Materials | Entered Subcaves 1439 | -10/Subcaves | Identified exit to Recycling 1439 | -10/Subcaves | Discovered exit to Recycling (range 9) 1490 | -10/Subcaves | A swath of the cavern ceiling suddenly collapsed 1593 | -10/Subcaves | Ambushed by Subdwellers from Twisted Machinery 1681 | -10/Subcaves | Core integrity fell below 50% 1725 | -10/Subcaves | Lost 5 parts (1p2n2w) 1864 | -10/Subcaves | Visited Clippyterm 1870 | -10/Subcaves | Learned Factory stockpile data 1927 | -10/Subcaves | Core integrity fell below 20% 1971 | -10/Subcaves | Ambushed by Subdweller buried in earth 2033 | -10/Subcaves | Entered Recycling 2398 | -7/Recycling | Identified exit to Factory 2398 | -7/Recycling | Discovered exit to Factory (range 15) 2707 | -7/Recycling | Destroyed by B-48 Gladiator with Mace Last Messages --------------- 02249_ Acquired VSS Leg. 02253_ Acquired Imp. Carbon-fiber Leg. 02255_ Acquired 30 matter. 02277_ Dropped Sub. Beam Cannon. 02277_ R-06 Scavenger collects Sub. Beam Cannon. 02328_ Kicked R-06 Scavenger. 02329_ Y-54 Guardian springs to life. 02336_ Y-54 Guardian destroyed. 02341_ Acquired 27 matter. 02344_ R-06 Scavenger collects Imp. Heat Sink. 02345_ R-06 Scavenger collects Gatling Laser. 02346_ R-06 Scavenger collects Lgt. Treads. 02384_ Y-54 Guardian springs to life. 02390_ Lgt. Treads melted. 02390_ Y-54 Guardian destroyed. 02391_ Acquired 12 matter. 02398_ EXIT=FOUND: FACTORY 02439_ Acquired Authchip [R/Combat]. 02697_ Y-54 Guardian springs to life. 02698_ I-36 Angel springs to life. Map ----- +----------------------------------------------------+ | ?????????????????????????????????????????????????? | | ?????????????????????????????????????????????????? | | ?????????????????????????????????????????????????? | | ?????????????????????????????????????????????????? | | ?????????????????????????????????????????????????? | | ?????????????????????????????????????????????????? | | ?????????????????????????????????????????????????? | | ?????????????????????????????????????????????????? | | ?????????????????????????????????????????????????? | | ???????? ????????????????????????????????????????? | | ???????? ??????? ????????????????????????????????? | | ???????? ??????? #?##############????????????????? | | ???????# ??????? #?# = ! #????????????????? | | ???????# # """ # #?# #????????????????? | | ???????# #""T""# #?# ! ! #????????????????? | | ???????# #"" ""# #?# / = #????????????????? | | ######## ### #????????????????? | | ## "## a #????????????????? | | ## "##! #????????????????? | | ## "## ! #????????????????? | | """ # T## ! #????????????????? | | """ + """ "#? #????????????????? | | """ # """ "#??? ??????????????????? | | """ # """ "#?????= ????????????????????? | | """ # #########b###???????????????????? | | + @ ############????????? | | #########" "## ???????? | | ????????#"Y"## u r ???????? | | ????????#"""## ??????? | | ????????###### ??????? | | ?????????????######!!!### ??????? | | ??????????????????# !!#?# r ??????? | | ??????????############### ###########!!!#??????? | | ??????????# # #????????????????????? | | ??????????# + #????????????????????? | | ?????????# # #?????????############ | | ?????????## # ########### | | #########?# # + """ " | | #?# # ###### # """ T | | "" """ #?############### #????# # """ " | | "" """ #???????????????#####????# + | | "" """ #??##########??###???????# #### """ """ | | #??# #?## ######### #??# """ """ | | "" """ #??# """ #?# # #??# """ """ | | "" """ #??# """ #?# # #??# | | "" """ #??# """ #?# # #??# | | #??# #?# # #??# | | "" """ #??###+##+##### # #### | | "" """ #????# / # ## #######+#### | | "" """ ######### ##### # | +----------------------------------------------------+ Best States ------------- Heat Dissipation 25 Energy Generation 16 Energy Capacity 290 Matter Stores 300 Matter Capacity 300 Sight Range 16 Robot Scan Range 14 Terrain Scan Density 10 Additional Mass Support 6 Resistance: KI 35 Resistance: TH 35 Resistance: EX 35 Resistance: EM 35 Resistance: I 35 Resistance: S 35 Resistance: P 35 Evasion (%) 62 Salvage Targeting 1 Offensive Hacking 20 Authchip Count 1 Item Schematics ----------------- None Robot Schematics ------------------ None Fabricated ------------ Nothing Repaired ---------- Nothing Studied --------- None Alien Tech Used ----------------- None Achievements -------------- None Challenges ------------ None Game ------ Seed DisposableCloakRifle Manual? 0 Play Time 00:18:39 Cumulative 81.2 hours Start 2025.11.12 @ 16:37:27 End 2025.11.12 @ 16:53:58 Sessions 1 Manual Loads 0 Difficulty Explorer Special Mode None Game No. 78 Rogue 0 Adventurer 0 Explorer 78 Win Type - Total 0 Types 0/0/0/0/0/0/0/0/0/0 Lore% 53 Gallery% 55 Achievement% 42 Wizard Run 0 Options --------- Layout 1 ASCII 0 Keyboard 0 Movement Mouse Keybinds 0 Fullscreen 1 Font 24/Smallcaps Map View 50x35 Zoom Use 0% Tactical HUD 1 Map Filters NONE Filters NONE Steam 1 RUN: fb624dab-e4f2-42a4-bd72-47bcba3d4890